bitfinex/quotes_SOLUSD_20250728
["timestamp","ask_amount","ask_price","bid_price","bid_amount"]
[1753671550434,0.1,191.75,191.74,16.78468397]
[1753671550637,0.1,191.75,191.74,21.69078661]
[1753671556056,1.44189048,191.75,191.68,0.51448974]
[1753671556239,0.69,191.74,191.7,4.90610264]
[1753671556765,0.69,191.73,191.7,4.90610264]
[1753671556982,5.90556855,191.74,191.71,4.90610264]
[1753671557354,5.90556855,191.74,191.72,4.90610264]
[1753671557658,5.90556855,191.74,191.71,4.90610264]
[1753671558232,5.90556855,191.74,191.7,4.90610264]
[1753671559136,5.96708759,191.75,191.71,4.90610264]
[1753671559375,6.65708759,191.75,191.71,4.90610264]
[1753671559546,0.1,191.75,191.73,4.90610264]
[1753671560563,0.69,191.74,191.71,4.90610264]
[1753671560758,0.69,191.73,191.69,16.78468397]
[1753671560966,5.90584318,191.73,191.71,16.78468397]
[1753671561147,0.69,191.73,191.71,16.78468397]
[1753671561628,0.75189048,191.75,191.7,4.90610264]
[1753671561629,1.44189048,191.75,191.7,4.90610264]
[1753671561837,5.21539584,191.74,191.7,4.90610264]
[1753671562035,5.90539584,191.74,191.7,4.90610264]
[1753671562651,5.21539584,191.74,191.7,5.57610264]
[1753671562858,5.21539584,191.74,191.71,4.90610264]
[1753671563447,5.31516085,191.75,191.72,0.67]
[1753671563664,5.31516085,191.75,191.71,4.90610264]
[1753671563865,0.65192448,191.74,191.69,17.45468397]
[1753671564040,5.59610264,191.73,191.69,16.78468397]
[1753671564240,5.59610264,191.72,191.69,16.78468397]
[1753671565873,10.12193937,191.73,191.69,16.78468397]
[1753671566060,10.77193937,191.73,191.69,16.78468397]
[1753671567165,10.12193937,191.73,191.69,17.49468397]
[1753671567468,10.77193937,191.73,191.69,16.78468397]
[1753671567763,10.12193937,191.73,191.69,17.49468397]
[1753671568853,10.12193937,191.73,191.68,16.78468397]
[1753671568854,4.90610264,191.7,191.68,16.78468397]
[1753671569566,4.90610264,191.71,191.68,16.78468397]
[1753671569739,5.21648408,191.7,191.68,16.78468397]
[1753671570166,10.12258672,191.7,191.67,0.06]
[1753671570465,10.77258672,191.7,191.67,0.06]
[1753671570887,10.12258672,191.7,191.67,0.06]
[1753671571266,5.21627484,191.71,191.68,0.71]
[1753671571483,5.21627484,191.71,191.68,16.78468397]
[1753671571793,5.21593991,191.72,191.69,0.71]
[1753671572290,5.21593991,191.72,191.68,16.78468397]
[1753671572587,4.90610264,191.7,191.67,0.06]
[1753671573473,1.30209452,191.69,191.67,0.06]
[1753671573783,6.20819716,191.69,191.67,0.06]
[1753671574169,5.21702838,191.68,191.67,0.06]
[1753671575180,5.21683396,191.69,191.67,0.06]
[1753671575379,5.21683396,191.69,191.67,0.77]
[1753671575571,5.86826765,191.71,191.68,0.71]
[1753671575788,5.86826765,191.71,191.69,0.71]
[1753671575997,5.86826765,191.71,191.67,5.67610264]
[1753671576496,6.6411,191.73,191.69,4.90610264]
[1753671576700,6.6411,191.73,191.7,0.71]
[1753671577379,5.21539584,191.74,191.7,0.71]
[1753671578001,5.21539584,191.74,191.7,5.61610264]
[1753671578293,4.90610264,191.72,191.68,16.78468397]
[1753671578601,5.21621198,191.71,191.68,5.61610264]
[1753671579585,5.21593991,191.72,191.68,5.61610264]
[1753671580000,5.21593991,191.72,191.68,4.90610264]
[1753671580176,5.86757394,191.74,191.69,0.71]
[1753671580370,5.86757394,191.74,191.7,5.61610264]
[1753671580572,5.86757394,191.74,191.7,0.71]
[1753671581171,6.51757394,191.74,191.69,4.90610264]
[1753671581377,11.42367658,191.74,191.69,5.61610264]
[1753671582201,10.77367658,191.74,191.69,0.71]
[1753671582402,5.86586863,191.73,191.69,0.71]
[1753671582983,5.21586863,191.73,191.69,5.61610264]
[1753671583188,10.77347985,191.74,191.69,5.61610264]
[1753671583388,0.65192448,191.74,191.71,16.78468397]
[1753671583701,0.1,191.75,191.74,16.78468397]
[1753671583905,0.1,191.75,191.74,22.40078661]
[1753671585467,0.1,191.75,191.74,16.78468397]
[1753671585692,0.1,191.75,191.73,26.0]
[1753671586508,0.1,191.75,191.74,21.69078661]
[1753671586710,0.1,191.75,191.74,22.40078661]
[1753671591022,0.1,191.75,191.74,27.61618245]
[1753671591497,0.1,191.75,191.74,115.91618245]
[1753671600823,0.1,191.75,191.74,116.20050559]
[1753671601028,0.1,191.75,191.74,117.86150559]
[1753671601259,0.1,191.85,191.82,17.06900711]
[1753671601466,0.1,191.85,191.82,59.53510975]
[1753671601627,0.1,191.95,191.93,16.78468397]
[1753671601827,0.1,191.95,191.94,22.41078661]
[1753671602027,0.1,191.95,191.94,22.69510975]
[1753671602460,1.6225,192.08,192.05,26.0]
[1753671602461,0.66,192.08,192.05,26.0]
[1753671602670,6.1485,192.09,192.07,4.90610264]
[1753671602839,6.8085,192.09,192.02,1.23239726]
[1753671603166,6.8085,192.09,192.06,21.69078661]
[1753671603852,12.01462325,192.09,192.06,21.69078661]
[1753671604168,6.8085,192.09,192.06,21.69078661]
[1753671604487,5.55673765,192.12,192.08,21.69078661]
[1753671604488,0.66,192.12,192.08,21.69078661]
[1753671604653,6.79906729,192.14,192.1,4.90610264]
[1753671604654,6.8085,192.14,192.1,4.90610264]
[1753671604845,7.92123947,192.14,192.12,16.78468397]
[1753671605043,0.66,192.17,192.12,21.69078661]
[1753671605365,0.66,192.17,192.14,16.78468397]
[1753671605539,5.20345509,192.18,192.14,21.69078661]
[1753671605741,6.1485,192.19,192.13,16.78468397]
[1753671605943,5.20304423,192.2,192.14,30.90610264]
[1753671606157,12.824269,192.22,192.15,17.50468397]
[1753671606364,7.62187578,192.22,192.18,16.78468397]
[1753671606568,5.20240389,192.22,192.18,16.78468397]
[1753671606773,7.80891863,192.19,192.12,7.80891863]
[1753671606959,1.31033036,192.21,192.12,16.78468397]
[1753671606960,7.80891863,192.16,192.12,16.78468397]
[1753671607163,1.31053343,192.15,192.08,7.80891863]
[1753671607358,0.66,192.15,192.09,16.78468397]
[1753671607670,7.80891863,192.11,192.06,16.78468397]
[1753671607878,1.31056729,192.14,192.03,0.72]
[1753671607879,13.0148117,192.09,192.03,8.52891863]
[1753671608045,7.80891863,192.08,192.02,7.80891863]
[1753671608281,5.20589307,192.09,192.02,7.80891863]
[1753671608474,7.80891863,192.08,192.02,24.5936026]
[1753671608793,7.80891863,192.08,192.06,16.78468397]
[1753671608988,0.66,192.08,192.03,50.5936026]
[1753671609211,13.0148117,192.09,192.05,16.78468397]
[1753671609773,13.6748117,192.09,192.05,26.0]
[1753671610369,5.86589307,192.09,192.05,26.0]
[1753671610574,13.6748117,192.09,192.05,26.0]
[1753671611088,7.80891863,192.08,192.05,26.0]
[1753671611271,5.20643515,192.07,192.05,26.0]
[1753671612380,5.20617117,192.08,192.05,26.0]
[1753671612589,7.80891863,192.07,192.05,26.0]
[1753671613313,13.67562486,192.06,192.02,16.78468397]
[1753671613603,5.20670623,192.06,192.02,17.50468397]
[1753671613777,13.01562486,192.06,192.02,17.50468397]
[1753671613979,5.20670623,192.06,192.02,17.50468397]
[1753671614179,5.20670623,192.06,192.02,25.3136026]
[1753671614787,5.20670623,192.06,192.02,17.50468397]
[1753671615811,5.20670623,192.06,192.02,25.3136026]
[1753671617494,13.0145407,192.1,192.05,7.80891863]
[1753671617717,13.0145407,192.1,192.05,8.52891863]
[1753671618426,13.0145407,192.1,192.05,16.78468397]
[1753671618427,7.80891863,192.09,192.05,16.78468397]
[1753671618607,7.80891863,192.08,192.04,26.0]
[1753671618810,0.66,192.07,192.04,26.0]
[1753671619327,8.46891863,192.07,192.04,26.0]
[1753671619548,5.20670623,192.06,192.04,26.0]
[1753671619819,0.65073663,192.09,192.04,26.0]
[1753671619820,13.01533439,192.08,192.04,26.0]
[1753671619988,13.01533439,192.08,192.04,26.72]
[1753671620191,0.03,192.12,192.08,16.78468397]
[1753671620393,0.03,192.12,192.09,8.52891863]
[1753671620912,0.03,192.12,192.11,24.5936026]
[1753671621330,0.03,192.12,192.11,16.78468397]
[1753671622533,0.03,192.12,192.1,16.78468397]
[1753671622716,0.03,192.12,192.09,7.80891863]
[1753671622922,0.03,192.12,192.1,8.52891863]
[1753671623110,0.03,192.12,192.11,7.80891863]
[1753671623319,0.03,192.12,192.11,25.82555436]
[1753671624312,0.03,192.12,192.11,25.3136026]
[1753671625445,0.03,192.12,192.11,30.5189537]
[1753671625636,0.03,192.12,192.11,31.03092601]
[1753671626137,0.03,192.12,192.11,31.31524915]
[1753671627951,0.03,192.15,192.14,42.78468397]
[1753671628116,1e-08,192.15,192.14,51.38967432]
[1753671628317,1e-08,192.15,192.14,89.52967432]
[1753671628618,1e-08,192.15,192.14,89.50967432]
[1753671629726,1e-08,192.15,192.14,94.71421267]
[1753671631130,148.05797569,192.24,192.22,26.0]
[1753671631342,0.1,192.26,192.25,26.0]
[1753671631550,6.3424,192.4,192.25,26.0]
[1753671631551,1.32972191,192.39,192.25,71.75992274]
[1753671631751,14.33641589,192.39,192.26,0.33]
[1753671631951,0.68,192.38,192.33,7.80891863]
[1753671632158,5.19777535,192.39,192.35,7.80891863]
[1753671632328,0.68,192.37,192.35,7.80891863]
[1753671632664,9.13874187,192.36,192.28,7.80891863]
[1753671632846,9.13874187,192.36,192.24,10.52756302]
[1753671632847,7.80891863,192.3,192.24,10.52756302]
[1753671633027,7.80891863,192.28,192.24,2.71864439]
[1753671633224,1.89632314,192.32,192.24,2.71864439]
[1753671633225,9.13904605,192.27,192.24,2.71864439]
[1753671633427,0.68,192.26,192.24,2.71864439]
[1753671633660,5.88156046,192.25,192.24,2.71864439]
[1753671633867,13.69047909,192.25,192.11,0.33]
[1753671634034,1.61455202,192.24,192.15,7.80891863]
[1753671634231,1.61455202,192.24,192.12,37.44]
[1753671634232,1.33022888,192.24,192.2,7.80891863]
[1753671634431,1.33022888,192.24,192.16,38.12]
[1753671634432,5.20156046,192.25,192.23,7.80891863]
[1753671634654,13.00198919,192.28,192.24,7.80891863]
[1753671634655,0.68,192.28,192.24,7.80891863]
[1753671634955,0.68,192.27,192.24,7.80891863]
[1753671635155,0.68,192.26,192.23,7.80891863]
[1753671635660,5.88129979,192.26,192.23,7.80891863]
[1753671635860,0.68,192.25,192.2,37.42]
[1753671636162,0.68,192.24,192.2,7.80891863]
[1753671636462,8.45918133,192.23,192.17,7.80891863]
[1753671636650,7.80891863,192.21,192.15,45.22891863]
[1753671636957,0.68,192.2,192.15,7.80891863]
[1753671637145,0.68,192.19,192.15,45.22891863]
[1753671637339,7.80891863,192.2,192.15,45.22891863]
[1753671637663,0.68,192.18,192.17,26.0]
[1753671637963,0.68,192.22,192.17,7.80891863]
[1753671638260,0.68,192.22,192.18,7.80891863]
[1753671638768,0.68,192.26,192.21,7.80891863]
[1753671638942,5.88155041,192.26,192.22,7.80891863]
[1753671639262,0.68,192.26,192.22,7.80891863]
[1753671639838,0.68,192.25,192.2,7.80891863]
[1753671640060,63.70432314,192.31,192.19,63.42]
[1753671640061,0.68,192.29,192.24,7.80891863]
[1753671640268,0.68,192.29,192.25,7.80891863]
[1753671640767,7.80891863,192.31,192.26,7.80891863]
[1753671641061,0.68,192.3,192.23,37.93093409]
[1753671641240,0.68,192.3,192.25,7.80891863]
[1753671641765,9.42091863,192.32,192.26,7.80891863]
[1753671642136,7.80891863,192.32,192.26,7.80891863]
[1753671642337,5.19908234,192.35,192.29,7.80891863]
[1753671642567,8.51891863,192.36,192.31,7.80891863]
[1753671642762,13.71759988,192.36,192.31,7.80891863]
[1753671643440,3.83391263,192.35,192.31,7.80891863]
[1753671644333,0.71,192.36,192.31,7.80891863]
[1753671644334,0.03,192.36,192.31,7.80891863]
[1753671644657,0.03,192.36,192.33,7.80891863]
[1753671645249,0.03,192.36,192.32,1.19048976]
[1753671645467,0.03,192.36,192.33,7.80891863]
[1753671645975,0.03,192.36,192.32,0.68]
[1753671646159,0.03,192.36,192.32,8.48891863]
[1753671646358,0.03,192.36,192.32,7.80891863]
[1753671647464,0.03,192.36,192.32,8.48891863]
[1753671647867,0.03,192.36,192.32,13.68853549]
[1753671648358,0.03,192.36,192.33,7.80891863]
[1753671648578,0.71,192.36,192.32,7.80891863]
[1753671648758,0.71,192.36,192.31,37.42]
[1753671648958,0.71,192.36,192.32,7.80891863]
[1753671649159,0.03,192.36,192.32,7.80891863]
[1753671649475,0.68,192.35,192.31,45.22891863]
[1753671649675,0.03,192.36,192.31,7.80891863]
[1753671649859,0.03,192.36,192.32,33.80891863]
[1753671650348,0.03,192.36,192.32,34.48891863]
[1753671650850,0.03,192.36,192.25,0.51064304]
[1753671650851,7.80891863,192.34,192.25,0.51064304]
[1753671651052,7.80891863,192.32,192.26,7.80891863]
[1753671651259,0.68,192.33,192.26,7.80891863]
[1753671651456,0.03,192.36,192.32,7.80891863]
[1753671651851,8.48891863,192.35,192.31,26.0]
[1753671652065,5.22858798,192.36,192.27,1.190602]
[1753671652066,7.80891863,192.33,192.27,7.80891863]
[1753671652294,7.80891863,192.33,192.3,26.0]
[1753671652455,0.68,192.32,192.3,26.0]
[1753671652655,0.68,192.32,192.29,26.0]
[1753671652656,0.68,192.31,192.29,26.0]
[1753671652859,8.48891863,192.33,192.3,26.0]
[1753671653471,13.00885623,192.31,192.23,7.80891863]
[1753671653781,7.80891863,192.24,192.2,0.06]
[1753671654084,7.80891863,192.21,192.2,0.06]
[1753671654663,0.65016123,192.26,192.2,0.06]
[1753671654664,7.80891863,192.23,192.2,0.06]
[1753671654972,0.65016123,192.26,192.21,7.80891863]
[1753671655170,9.11907986,192.26,192.21,7.80891863]
[1753671655368,5.20156046,192.25,192.21,7.80891863]
[1753671655568,5.86156046,192.25,192.21,7.80891863]
[1753671656291,5.20131932,192.26,192.21,7.80891863]
[1753671656479,0.65012742,192.27,192.21,7.80891863]
[1753671656672,13.66015656,192.27,192.21,7.80891863]
[1753671656874,5.85123793,192.27,192.21,7.80891863]
[1753671657174,5.20111051,192.27,192.23,7.80891863]
[1753671658083,12.44063689,192.31,192.26,7.80891863]
[1753671658257,1.310026,192.3,192.25,33.80891863]
[1753671658461,0.66,192.29,192.25,26.0]
[1753671658661,0.650026,192.3,192.25,26.0]
[1753671658863,0.66,192.28,192.25,7.80891863]
[1753671659084,0.66,192.28,192.24,33.80891863]
[1753671659593,5.86086754,192.28,192.24,33.80891863]
[1753671660068,0.66,192.27,192.24,26.0]
[1753671660266,0.66,192.27,192.22,33.80891863]
[1753671660581,7.2405,192.31,192.26,7.80891863]
[1753671660761,7.2405,192.31,192.27,7.80891863]
[1753671661413,12.44053025,192.31,192.27,7.80891863]
[1753671661616,1.6318,192.32,192.28,7.80891863]
[1753671661912,0.6499584,192.32,192.28,7.80891863]
[1753671662286,0.6499246,192.33,192.28,7.80891863]
[1753671662620,47.67665013,192.36,192.31,7.80891863]
[1753671662786,37.43,192.36,192.33,7.80891863]
[1753671662985,37.43,192.36,192.32,7.80891863]
[1753671663187,8.46891863,192.35,192.29,7.80891863]
[1753671663385,42.62867021,192.36,192.32,7.80891863]
[1753671663615,37.43,192.36,192.32,7.80891863]
[1753671663916,42.62867638,192.36,192.32,7.80891863]
[1753671664093,42.62867638,192.36,192.31,7.80891863]
[1753671664094,37.43,192.36,192.31,7.80891863]
[1753671664291,42.62872233,192.36,192.31,7.80891863]
[1753671664615,43.28872233,192.36,192.31,7.80891863]
[1753671664910,43.28872233,192.36,192.27,7.80891863]
[1753671664911,7.80891863,192.32,192.27,7.80891863]
[1753671665213,8.46891863,192.32,192.27,7.80891863]
[1753671665592,5.8599376,192.31,192.27,7.80891863]
[1753671666816,0.66,192.3,192.24,0.06]
[1753671667017,8.45897843,192.29,192.24,0.06]
[1753671667200,0.66,192.28,192.24,0.06]
[1753671667520,0.66,192.27,192.24,7.86891863]
[1753671667713,0.6500598,192.29,192.24,7.86891863]
[1753671667924,0.6500598,192.29,192.25,7.80891863]
[1753671668614,5.8599376,192.31,192.26,7.80891863]
[1753671669001,6.5099298,192.31,192.25,0.68]
[1753671669205,6.5099298,192.31,192.26,7.80891863]
[1753671670002,0.66,192.31,192.27,7.80891863]
[1753671670501,5.84964395,192.32,192.27,7.80891863]
[1753671670894,0.66,192.31,192.27,7.80891863]
[1753671671402,5.85998174,192.31,192.27,7.80891863]
[1753671671922,0.66,192.31,192.27,7.80891863]
[1753671672309,5.860015,192.31,192.25,5.20142173]
[1753671672509,5.860015,192.31,192.27,7.80891863]
[1753671672829,7.80891863,192.29,192.24,0.06]
[1753671672998,0.65009361,192.28,192.24,0.06]
[1753671673330,6.51094262,192.28,192.24,0.06]
[1753671674129,5.85054693,192.29,192.25,7.80891863]
[1753671674610,6.51054693,192.29,192.24,0.06]
[1753671674999,6.51054693,192.29,192.24,7.86891863]
[1753671675405,50.39813977,192.34,192.28,7.80891863]
[1753671675406,0.66,192.32,192.28,7.80891863]
[1753671675613,7.80891863,192.3,192.25,7.80891863]
[1753671675935,1.3100598,192.29,192.24,0.06]
[1753671676140,9.11897843,192.29,192.24,0.06]
[1753671676364,0.66,192.28,192.24,7.86891863]
[1753671676856,9.11891083,192.31,192.26,7.80891863]
[1753671677058,5.860208,192.3,192.26,7.80891863]
[1753671677563,9.11884323,192.33,192.28,7.80891863]
[1753671677938,7.80891863,192.31,192.26,7.80891863]
[1753671678260,8.46891863,192.31,192.26,7.80891863]
[1753671678465,0.66,192.31,192.26,7.80891863]
[1753671678660,0.66,192.31,192.27,7.80891863]
[1753671678957,0.66,192.31,192.24,5.94177311]
[1753671679130,5.86011607,192.31,192.27,7.80891863]
[1753671680161,8.46891863,192.3,192.24,7.86891863]
[1753671680360,0.66,192.3,192.25,7.80891863]
[1753671680934,0.66,192.3,192.24,0.06]
[1753671681274,5.20047844,192.29,192.25,7.80891863]
[1753671681940,0.66,192.28,192.25,7.80891863]
[1753671682139,5.20047844,192.29,192.24,0.06]
[1753671682140,8.46891863,192.27,192.24,0.06]
[1753671682438,7.80891863,192.26,192.24,0.06]
[1753671682629,18.20167455,192.29,192.25,7.80891863]
[1753671682630,5.20047844,192.29,192.25,7.80891863]
[1753671682834,5.20028382,192.3,192.27,7.80891863]
[1753671683034,43.24997859,192.31,192.27,7.80891863]
[1753671683263,43.90997859,192.31,192.26,7.80891863]
[1753671683496,0.66,192.3,192.25,7.80891863]
[1753671683675,1.3100598,192.29,192.24,7.86891863]
[1753671683982,0.6500598,192.29,192.24,7.86891863]
[1753671684169,50.40890502,192.31,192.25,8.48891863]
[1753671684366,0.650026,192.3,192.25,7.80891863]
[1753671684562,0.66,192.29,192.25,7.80891863]
[1753671684878,1.31009361,192.28,192.24,0.06]
[1753671685051,1.31009361,192.28,192.24,7.86891863]
[1753671685251,0.650026,192.3,192.25,7.80891863]
[1753671685453,5.91052421,192.29,192.25,7.80891863]
[1753671686575,5.91052421,192.29,192.24,7.86891863]
[1753671686780,6.56058401,192.29,192.24,7.86891863]
[1753671687581,6.56058401,192.29,192.25,7.80891863]
[1753671687778,0.71,192.28,192.24,7.86891863]
[1753671687979,7.80891863,192.26,192.24,0.06]
[1753671688152,1.36019505,192.25,192.24,0.06]
[1753671688572,9.16911368,192.25,192.24,0.06]
[1753671688950,0.65019505,192.25,192.24,0.06]
[1753671689456,6.56175551,192.25,192.24,0.06]
[1753671689964,42.60132745,192.26,192.24,0.06]
[1753671690371,0.65012742,192.27,192.24,7.86891863]
[1753671690563,0.74,192.3,192.25,0.68]
[1753671690759,1.390026,192.3,192.25,8.48891863]
[1753671690986,1.390026,192.3,192.25,7.80891863]
[1753671691494,0.680026,192.3,192.27,7.80891863]
[1753671691695,0.03,192.3,192.29,7.80891863]
[1753671691881,0.03,192.3,192.29,8.48891863]
[1753671692389,0.03,192.3,192.29,25.2736026]
[1753671692877,0.03,192.3,192.29,62.6736026]
[1753671693080,1e-08,192.3,192.29,62.6736026]
[1753671693500,0.03,192.35,192.33,5.19939686]
[1753671693680,0.03,192.35,192.34,25.10401876]
[1753671693884,37.4,192.47,192.38,16.78468397]
[1753671694085,2.96421812,192.48,192.44,7.80891863]
[1753671694086,8.1595693,192.48,192.44,7.80891863]
[1753671694784,8.1595693,192.48,192.43,7.80891863]
[1753671694979,8.1595693,192.48,192.4,37.4]
[1753671695185,0.64941812,192.48,192.46,7.80891863]
[1753671695491,0.1,192.5,192.46,7.80891863]
[1753671695685,6.00483681,192.5,192.46,7.80891863]
[1753671696089,0.71,192.49,192.46,7.80891863]
[1753671696285,5.29483681,192.5,192.43,26.50962367]
[1753671696286,0.1,192.5,192.43,26.50962367]
[1753671696595,0.1,192.5,192.42,0.68]
[1753671696596,2.81113096,192.5,192.44,26.0]
[1753671696794,1.35938438,192.49,192.44,7.80891863]
[1753671697093,5.29480565,192.5,192.45,7.80891863]
[1753671697300,0.71,192.49,192.45,7.80891863]
[1753671697478,0.81,192.5,192.45,7.80891863]
[1753671697873,0.71,192.49,192.45,7.80891863]
[1753671698078,5.29483252,192.5,192.45,7.80891863]
[1753671698301,9.16830301,192.49,192.42,0.68]
[1753671698604,0.71,192.48,192.43,7.80891863]
[1753671698776,9.16837049,192.47,192.42,7.80891863]
[1753671699103,0.71,192.47,192.42,7.80891863]
[1753671699283,5.90570517,192.47,192.42,8.48891863]
[1753671699486,0.1,192.5,192.46,7.80891863]
[1753671699684,5.29492898,192.5,192.47,7.80891863]
[1753671699883,5.29492898,192.5,192.46,7.80891863]
[1753671699884,6.00492898,192.5,192.46,7.80891863]
[1753671700097,0.71,192.49,192.45,7.80891863]
[1753671700502,0.1,192.5,192.46,7.80891863]
[1753671700671,0.1,192.5,192.47,7.80891863]
[1753671702302,0.1,192.5,192.44,26.0]
[1753671702303,5.29486938,192.5,192.44,26.0]
[1753671702504,5.29486938,192.5,192.46,7.80891863]
[1753671702689,5.29486938,192.5,192.49,7.80891863]
[1753671702690,0.1,192.5,192.49,7.80891863]
[1753671702877,0.1,192.5,192.49,8.48891863]
[1753671704702,0.1,192.5,192.49,30.97806046]
[1753671705010,0.1,192.5,192.49,14.19337649]
[1753671705388,0.1,192.5,192.49,30.97806046]
[1753671705994,0.1,192.5,192.49,68.33806046]
[1753671710105,0.13,192.5,192.49,68.33806046]
[1753671715214,0.13,192.5,192.47,5.19538902]
[1753671715419,0.72,192.49,192.48,7.80891863]
[1753671715642,0.72,192.49,192.48,45.14891863]
[1753671715918,0.13,192.5,192.48,7.80891863]
[1753671716244,0.72,192.49,192.47,37.34]
[1753671716437,0.72,192.49,192.48,7.80891863]
[1753671716742,0.13,192.5,192.48,7.80891863]
[1753671716937,0.13,192.5,192.49,7.80891863]
[1753671717726,0.85,192.5,192.48,7.80891863]
[1753671717927,0.85,192.5,192.47,45.14891863]
[1753671718123,6.04486999,192.5,192.47,45.14891863]
[1753671718314,0.72,192.49,192.47,45.14891863]
[1753671718522,0.13,192.5,192.48,7.80891863]
[1753671718924,0.13,192.5,192.49,7.80891863]
[1753671719446,0.13,192.5,192.49,33.80891863]
[1753671719627,0.13,192.5,192.49,39.00399369]
[1753671719820,0.13,192.5,192.49,31.00806046]
[1753671720021,0.13,192.5,192.49,68.34806046]
[1753671721059,0.13,192.5,192.49,7.80891863]
[1753671721438,0.85,192.5,192.46,7.80891863]
[1753671721638,0.85,192.5,192.46,45.14891863]
[1753671721838,0.85,192.5,192.41,17.49468397]
[1753671721839,7.80891863,192.47,192.35,13.76690088]
[1753671722061,7.80891863,192.43,192.38,7.80891863]
[1753671722243,0.72,192.42,192.4,7.80891863]
[1753671722452,0.72,192.45,192.41,7.80891863]
[1753671722652,0.72,192.44,192.42,7.80891863]
[1753671722854,0.72,192.43,192.41,7.80891863]
[1753671723045,0.72,192.42,192.41,7.80891863]
[1753671723249,0.72,192.42,192.41,26.0]
[1753671723446,0.72,192.42,192.38,7.80891863]
[1753671723651,5.91706305,192.42,192.37,45.14891863]
[1753671723866,0.64951935,192.45,192.38,7.80891863]
[1753671723867,0.72,192.41,192.38,7.80891863]
[1753671724367,0.77935064,192.5,192.4,7.80891863]
[1753671724568,0.72,192.44,192.42,7.80891863]
[1753671724793,0.72,192.44,192.43,7.80891863]
[1753671725349,0.72,192.44,192.42,7.80891863]
[1753671725742,58.2961524,192.49,192.43,7.80891863]
[1753671725951,0.72,192.48,192.44,7.80891863]
[1753671726160,0.72,192.47,192.44,7.80891863]
[1753671726363,0.72,192.46,192.44,7.80891863]
[1753671727056,46.0121,192.49,192.45,7.80891863]
[1753671727258,8.6721,192.49,192.46,7.80891863]
[1753671727453,0.72,192.48,192.45,7.80891863]
[1753671727654,0.72,192.48,192.43,63.34]
[1753671727980,0.72,192.47,192.44,7.80891863]
[1753671728683,8.6721,192.49,192.45,7.80891863]
[1753671728990,0.72,192.48,192.45,7.80891863]
[1753671729490,0.72,192.48,192.46,7.80891863]
[1753671729898,0.13,192.5,192.47,7.80891863]
[1753671730392,0.72,192.49,192.44,5.19633058]
[1753671730588,0.72,192.49,192.46,7.80891863]
[1753671730762,5.97431245,192.5,192.43,5.19665768]
[1753671730961,0.72,192.48,192.45,7.80891863]
[1753671731164,0.72,192.48,192.46,7.80891863]
[1753671731595,5.32482581,192.5,192.45,7.80891863]
[1753671731775,0.72,192.47,192.45,7.80891863]
[1753671732176,0.72,192.49,192.45,7.80891863]
[1753671732375,0.72,192.49,192.46,7.80891863]
[1753671732602,5.32482581,192.5,192.48,7.80891863]
[1753671732603,0.13,192.5,192.48,7.80891863]
[1753671732890,0.85,192.5,192.48,7.80891863]
[1753671733488,0.72,192.49,192.46,96.10891863]
[1753671733693,0.72,192.48,192.46,96.10891863]
[1753671734192,0.13,192.5,192.47,7.80891863]
[1753671734491,0.13,192.5,192.49,7.80891863]
[1753671736324,0.13,192.5,192.49,13.71399369]
[1753671737219,0.13,192.5,192.49,13.00399369]
[1753671738206,0.13,192.5,192.49,13.71399369]
[1753671738390,0.13,192.5,192.48,42.53514253]
[1753671738597,0.13,192.5,192.49,7.80891863]
[1753671738816,0.13,192.5,192.48,42.53514253]
[1753671739010,0.13,192.5,192.49,7.80891863]
[1753671740302,0.13,192.5,192.49,8.51891863]
[1753671741428,0.13,192.5,192.49,13.00399369]
[1753671741936,0.13,192.5,192.49,101.30399369]
[1753671742607,0.13,192.5,192.49,96.10891863]
[1753671743209,0.85,192.5,192.49,88.3]
[1753671744431,0.13,192.5,192.49,88.3]
[1753671744613,0.13,192.5,192.49,96.10891863]
[1753671745014,0.13,192.5,192.49,88.3]
[1753671745403,0.13,192.5,192.49,96.10891863]
[1753671746224,0.83,192.5,192.49,96.10891863]
[1753671746428,0.13,192.5,192.49,96.10891863]